[Event "German-ch Blitz Women 2022"]
[Site "Magdeburg"]
[Date "2022.08.13"]
[Round "3.12"]
[White "Melamed, Tatjana"]
[Black "Schulze, Lara"]
[Result "1/2-1/2"]
[ECO "B30"]
[WhiteElo "2380"]
[BlackElo "2292"]
[Annotator "TA"]
[PlyCount "111"]
[EventDate "2022.08.10"]
[EventType "tourn"]
[EventCountry "GER"]
[SourceTitle "playchess.com"]
[Source "ChessBase"]
[SourceQuality "1"]
[TimeControl "180+2"]

{[%evp 9,111,21,34,13,46,25,38,-3,0,0,43,42,62,17,9,6,0,0,0,0,0,21,16,-81,-81,-81,-31,-41,-37,-43,-33,-74,7,8,14,3,11,16,71,41,71,76,80,0,59,51,54,39,39,0,33,0,0,0,0,-28,0,0,0,0,0,0,8,0,0,0,0,-7,0,-8,0,-8,0,0,0,-8,-8,-11,0,0,0,0,0,0,0,0,0,-29976,-29977,-29977,-29978,-29978,-29979,-29979,-29980,-29981,-8,-8,-8,-8,-8,-8,-8,-8]} 1. e4 {[%emt 0:00:01]} c5 {[%emt 0:00:01]} 2. Nf3 {[%emt 0:00:02]} Nc6 {[%emt 0:00:00]} 3. c3 {[%emt 0:00:02]} d5 {[%emt 0:00:06]} 4. exd5 {[%emt 0:00:02]} Qxd5 {[%emt 0:00:01]} 5. d4 {[%emt 0:00:01]} Bf5 {[%emt 0:00:03]} 6. Be2 {[%emt 0:00:10] Threatening c4. B22: Sicilian: 2 c3.} e6 {[%emt 0:00:10]} 7. O-O {[%emt 0:00:02] Strongly threatening c4.} cxd4 {[%emt 0:00:02]} 8. cxd4 {[%emt 0:00:01] White is slightly better.} (8. Nxd4 {looks sharper.} Bc5 9. Nxf5 Qxf5 10. Bd3) 8... Nf6 {[%emt 0:00:02]} 9. Nc3 {[%emt 0:00:02]} Qd8 {[%emt 0:00:05] [#]} 10. Qb3 $146 {[%emt 0:00:23]} ({Predecessor:} 10. Be3 Be7 11. Qb3 Qc7 12. Rac1 O-O 13. Rfd1 Rac8 14. Bg5 Rfd8 15. h3 Ne4 16. Nxe4 Bxe4 17. Bxe7 Qxe7 {½-½ (58) Dobes,V (1834)-Svoboda,M (2006) Sec u Chrudimi 2008}) 10... Rb8 {[%emt 0:00:40]} 11. Bf4 {[%emt 0:00:23]} Bd6 {[%emt 0:00:02]} 12. Be5 {[%emt 0:00:02]} O-O {[%emt 0:00:08]} 13. Rad1 {[%emt 0:00:01]} Ne4 {[%emt 0:00:18]} 14. Nb5 {[%emt 0:00:10]} Bxe5 {[%emt 0:00:06]} 15. dxe5 {[%emt 0:00:03]} Qb6 {[%emt 0:00:04]} 16. Nd6 {[%emt 0:00:32]} (16. Nbd4 $11 {remains equal.}) 16... Qxb3 $17 {[%emt 0:00:13]} 17. axb3 {[%emt 0:00:01] [#]} Bg6 {[%emt 0:00:14]} (17... Nxd6 $1 $17 18. Rxd6 Rfd8) 18. Bd3 {[%emt 0:00:11]} Nc5 {[%emt 0:00:16][%csl LRb3,LRd3]} 19. Bxg6 {[%emt 0:00:35]} hxg6 {[%emt 0:00:01]} 20. Rc1 {[%emt 0:00:03]} Nd7 {[%emt 0:00:04]} ({Better is} 20... Nd3 $17 21. Rc4 Ncxe5 22. Nxe5 Nxe5) 21. Rfe1 $11 {[%emt 0:00:02]} Rfd8 {[%emt 0:00:10][%cal Od7e5] [#]} 22. Nxb7 $1 {[%emt 0:00:02]} Rxb7 {[%emt 0:00:01]} 23. Rxc6 {[%emt 0:00:01]} Nb6 {[%emt 0:00:07]} (23... Rxb3 $11 24. Rc7 Rxb2) 24. h3 {[%emt 0:00:05]} Rbd7 {[%emt 0:00:01]} 25. Rec1 {[%emt 0:00:02]} Nd5 {[%emt 0:00:13]} 26. Rd6 {[%emt 0:00:07]} (26. g3 $16) 26... f6 {[%emt 0:00:10]} (26... Rxd6 $11 27. exd6 f6) 27. Rxd7 {[%emt 0:00:02]} ({Of course not} 27. Rxe6 Nf4 28. Rcc6 Nxe6 29. Rxe6 Kf7 $17) 27... Rxd7 {[%emt 0:00:01]} 28. exf6 {[%emt 0:00:02]} gxf6 $14 {[%emt 0:00:01][%mdl 4096] Endgame KRN-KRN} 29. Nd4 e5 {[%emt 0:00:09]} 30. Nb5 {[%emt 0:00:02]} Nf4 {[%emt 0:00:10] ...Ne2+ is the strong threat.} 31. Rc8+ {[%emt 0:00:01]} Kf7 {[%emt 0:00:02]} 32. Kh2 {[%emt 0:00:01]} Nd3 {[%emt 0:00:04]} (32... Rd2 $5 {[%cal Rd2f2]} 33. Rc7+ Kf8 $15) 33. Ra8 {[%emt 0:00:06]} Nxf2 {[%emt 0:00:04]} 34. Rxa7 {[%emt 0:00:03]} Rxa7 {[%emt 0:00:01]} 35. Nxa7 $11 {[%emt 0:00:01] KN-KN} Ke6 {[%emt 0:00:01]} 36. Nb5 {[%emt 0:00:02]} Nd3 {[%emt 0:00:02]} 37. Nc7+ {[%emt 0:00:03]} Kd6 {[%emt 0:00:05]} 38. Ne8+ {[%emt 0:00:03]} Ke7 {[%emt 0:00:01]} 39. Nc7 {[%emt 0:00:01]} Nxb2 {[%emt 0:00:02]} 40. Kg3 {[%emt 0:00:01]} Kd6 {[%emt 0:00:03]} 41. Ne8+ {[%emt 0:00:01]} Ke7 {[%emt 0:00:00]} 42. Nc7 {[%emt 0:00:01]} Nd3 {[%emt 0:00:01]} 43. Kf3 {[%emt 0:00:03]} e4+ {[%emt 0:00:04]} 44. Kxe4 {[%emt 0:00:08]} Nc5+ {[%emt 0:00:01]} 45. Kf4 {[%emt 0:00:06]} Nxb3 46. h4 {[%emt 0:00:01]} Nd4 {[%emt 0:00:04]} 47. g4 {[%emt 0:00:05]} Ne6+ {[%emt 0:00:03]} 48. Ke4 $2 {[%emt 0:00:03][%mdl 8192]} (48. Nxe6 $11 Kxe6 49. h5 gxh5 50. gxh5) 48... Nxc7 {[%emt 0:00:01]} 49. h5 {[%emt 0:00:03]} gxh5 {[%emt 0:00:03]} 50. gxh5 {[%emt 0:00:01] KN-KP} Kf7 {[%emt 0:00:04]} 51. Kf5 {[%emt 0:00:02]} Ne8 {[%emt 0:00:02]} 52. h6 {[%emt 0:00:01]} Kg8 $2 {[%emt 0:00:04]} (52... Nd6+ {mates} 53. Kg4 Kg6 54. Kg3 Kxh6 55. Kg4 Kg6 56. Kg3 Kf5 57. Kf3 Ke5 58. Kg3 f5 59. Kh3 Ke4 60. Kh2 f4 61. Kh3 f3 62. Kg3 Ke3 63. Kh2 f2 64. Kg2 Ke2 65. Kg3 f1=Q 66. Kg4 Qf5+ 67. Kg3 Ne4+ 68. Kh4 Qg5+ 69. Kh3 Qg3#) 53. Kg6 {[%emt 0:00:01] The position is equal.} Kh8 {[%emt 0:00:01] ( -> ...Kg8)} 54. h7 {[%emt 0:00:01]} f5 {[%emt 0:00:09]} 55. Kxf5 {[%emt 0:00:03]} Kxh7 {[%emt 0:00:01]} 56. Ke4 {Weighted Error Value: White=0.25 (precise) /Black=0.30} 1/2-1/2

[Event "German-ch Blitz Women 2022"]
[Site "Magdeburg"]
[Date "2022.08.13"]
[Round "4.1"]
[White "Paehtz, Elisabeth"]
[Black "Schulze, Lara"]
[Result "1-0"]
[ECO "A46"]
[WhiteElo "2484"]
[BlackElo "2292"]
[Annotator "TA"]
[PlyCount "106"]
[EventDate "2022.08.10"]
[EventType "tourn"]
[EventCountry "GER"]
[SourceTitle "playchess.com"]
[Source "ChessBase"]
[SourceQuality "1"]
[TimeControl "180+2"]

{[%evp 10,106,7,-7,5,-13,-14,-11,-11,-33,-24,-58,-47,-72,-65,-70,-61,-76,-66,-81,-33,-38,-32,-37,-48,-35,-27,-90,31,-63,0,-91,-23,-75,0,-188,-186,-147,-104,-129,-76,-166,0,0,14,0,0,0,0,-22,0,-76,16,12,23,0,27,25,25,0,25,25,25,25,44,44,45,45,43,25,70,62,90,59,59,52,90,43,82,67,77,32,62,59,59,0,110,103,104,25,112,59,110,62,72,46,85,62,46]} 1. d4 {[%emt 0:00:01]} Nf6 {[%emt 0:00:01]} 2. Nf3 {[%emt 0:00:01]} e6 {[%emt 0:00:02]} 3. Bf4 {[%emt 0:00:02]} d5 {[%emt 0:00:01]} 4. e3 {[%emt 0:00:01]} Bd6 {[%emt 0:00:02]} 5. Bg3 {[%emt 0:00:03]} O-O {[%emt 0:00:03]} 6. Nbd2 {[%emt 0:00:01]} c5 {[%emt 0:00:01] D02: 1 d4 d5 2 Nf3 sidelines, including 2...Nf6 3 g3 and 2...Nf6 3 Bf4.} 7. c3 {[%emt 0:00:06]} Qc7 {[%emt 0:00:02]} 8. Ne5 {[%emt 0:00:01]} c4 {[%emt 0:00:01] The position is equal.} 9. f4 {[%emt 0:00:03]} b5 {[%emt 0:00:04] [#]} 10. a3 $146 {[%emt 0:00:03]} ({Predecessor:} 10. Be2 Bb7 11. O-O {½-½ (11) Avik,S (2030)-Chowdhury,S (2149) Dhaka 2021}) 10... Ne4 {[%emt 0:00:18]} 11. Be2 {[%emt 0:00:34]} f6 {[%emt 0:00:08] Threatens to win with ...Nxd2.} 12. Nef3 {[%emt 0:00:01]} Nd7 {[%emt 0:00:06][%cal Bb8d7,Bd7b6,Bb6d5][%mdl 32]} 13. Nxe4 {[%emt 0:00:03]} dxe4 {[%emt 0:00:01]} 14. Nd2 {[%emt 0:00:02]} f5 {[%emt 0:00:04]} (14... Bb7 $17) 15. a4 $15 {[%emt 0:00:01]} Ba6 {[%emt 0:00:23]} 16. axb5 {[%emt 0:00:04]} Bxb5 {[%emt 0:00:02]} 17. b3 {[%emt 0:00:03][%cal Rb3c4]} Nb6 {[%emt 0:00:09]} 18. O-O {[%emt 0:00:13]} (18. bxc4 $1 $11 Bxc4 19. Nxc4 Nxc4 20. Bf2) 18... a6 {[%emt 0:00:04]} (18... Nd5 $17 19. Nxc4 Bxc4 20. Bxc4 Nxe3 21. Bxe6+ Kh8) 19. Bf2 {[%emt 0:00:19]} (19. bxc4 $14 Nxc4 20. Nxc4 Bxc4 21. Bxc4 Qxc4 22. Be1) 19... Rfc8 {[%emt 0:00:20]} (19... a5 $15) 20. Kh1 {[%emt 0:00:13]} (20. bxc4 $11 {keeps the balance.} Nxc4 21. Nxc4 Bxc4 22. Be1) 20... Kh8 {[%emt 0:00:37]} ({Better is} 20... Qb7 $17 {With the idea ...cxb3.} 21. b4 Nd5) 21. h3 {[%emt 0:00:04]} (21. bxc4 $11 Nxc4 22. Nxc4 Bxc4 23. Be1) 21... Rab8 {[%emt 0:00:07]} (21... a5 $17) 22. b4 $2 {[%emt 0:00:03]} (22. bxc4 $11 {and White stays safe.} Nxc4 23. Nxc4 Bxc4 24. Kg1) 22... Nd5 $19 {[%emt 0:00:05]} 23. Qc2 {[%emt 0:00:05]} Rg8 {[%emt 0:00:28] aiming for ...g5.} 24. h4 {[%emt 0:00:23]} Rbc8 {[%emt 0:00:19]} (24... h6 $142 {...g5 is the strong threat.} 25. g4 g5 26. fxg5 hxg5) 25. Rac1 {[%emt 0:00:03]} (25. g4 $17 {was necessary.}) 25... Bxf4 $2 {[%emt 0:00:07]} 26. exf4 $11 {[%emt 0:00:03]} e3 {[%emt 0:00:01] [#]} 27. Bf3 $1 {[%emt 0:00:26]} exd2 {[%emt 0:00:05]} 28. Qxd2 {[%emt 0:00:02]} Qxf4 {[%emt 0:00:04]} 29. Qe2 {[%emt 0:00:03]} Qd6 {[%emt 0:00:01]} 30. Bg1 {[%emt 0:00:05] [#]} (30. Bxd5 $11 exd5 31. Qf3) 30... Rge8 {[%emt 0:00:04]} (30... Nf4 $1 $17 {[%cal Rf4e2]} 31. Qe3 Nd3) 31. Bh2 {[%emt 0:00:02][%mdl 1024] White has compensation.} f4 {[%emt 0:00:02]} 32. Be4 {[%emt 0:00:07]} Rf8 {[%emt 0:00:02]} 33. Qh5 {[%emt 0:00:03][%csl Ge4][%cal Rh5h7]} Nf6 {[%emt 0:00:02][%csl LRe4,LRh5]} 34. Qe2 {[%emt 0:00:02]} Nxe4 {[%emt 0:00:02]} 35. Qxe4 {[%emt 0:00:01][%cal Rh2f4]} Bc6 {[%emt 0:00:01]} 36. Bxf4 {[%emt 0:00:08]} Bxe4 {[%emt 0:00:02]} 37. Bxd6 {[%emt 0:00:01]} Rxf1+ {[%emt 0:00:02]} 38. Rxf1 {[%emt 0:00:01][%mdl 4096] Endgame KRB-KRB} Kg8 {[%emt 0:00:04] Inhibits Rf7.} 39. Ra1 {[%emt 0:00:05]} Rc6 {[%emt 0:00:02]} 40. Be5 {[%emt 0:00:02]} Kf7 {[%emt 0:00:02]} 41. Rf1+ {[%emt 0:00:04]} Kg8 {[%emt 0:00:03]} 42. Kh2 {[%emt 0:00:01]} Bd5 {[%emt 0:00:04]} 43. Kh3 {[%emt 0:00:06]} (43. Ra1 $16) 43... Rb6 {[%emt 0:00:02]} 44. Ra1 {[%emt 0:00:01]} Bb7 {[%emt 0:00:02]} 45. Ra5 {[%emt 0:00:02]} Kf7 {[%emt 0:00:02]} 46. Rc5 {[%emt 0:00:01]} Rc6 {[%emt 0:00:03]} 47. Ra5 {[%emt 0:00:01]} ({White should try} 47. g3 $14) 47... g6 {[%emt 0:00:03]} (47... Rb6 $1 $11) 48. Kg3 {[%emt 0:00:02] White is more active.} Rc8 {[%emt 0:00:03]} 49. Ra2 {[%emt 0:00:01]} ({White should play} 49. b5 $16) 49... Ke7 {[%emt 0:00:03]} (49... Kg8 $1 $11 {remains equal.}) 50. Rf2 {[%emt 0:00:02]} (50. Kg4 $16) 50... Bd5 {[%emt 0:00:03] [#]} (50... Ra8 $14) 51. Bf6+ {[%emt 0:00:02]} (51. Kg4 $1 $16) 51... Kd7 $14 {[%emt 0:00:01]} 52. Bg7 {[%emt 0:00:02] Against Rf8} Ke7 {[%emt 0:00:02]} 53. Bh6 {[%emt 0:00:01]} Rc7 {Weighted Error Value: White=0.38/Black=0.35} 1-0

[Event "German-ch Blitz Women 2022"]
[Site "Magdeburg"]
[Date "2022.08.13"]
[Round "4.2"]
[White "Nikolaeva, Mariya A"]
[Black "Melamed, Tatjana"]
[Result "0-1"]
[ECO "B03"]
[WhiteElo "1309"]
[BlackElo "2380"]
[Annotator "TA"]
[PlyCount "54"]
[EventDate "2022.08.10"]
[EventType "tourn"]
[EventCountry "GER"]
[SourceTitle "playchess.com"]
[Source "ChessBase"]
[SourceQuality "1"]
[TimeControl "180+2"]

{[%evp 24,54,91,17,44,20,15,5,10,14,18,-20,-12,-46,-25,-26,0,-133,-126,-238,-240,-236,-231,-218,-173,-152,-81,-521,-136,-127,-127,-2276,-2022]} 1. e4 {[%cal Be2e4,Be4e5][%mdl 32]} Nf6 {[%emt 0:00:01]} 2. e5 {[%emt 0:00:02]} Nd5 {[%emt 0:00:01]} 3. c4 {[%emt 0:00:01]} Nb6 {[%emt 0:00:02]} 4. d4 {[%emt 0:00:01]} d6 {[%emt 0:00:00]} 5. exd6 {[%emt 0:00:02]} cxd6 {[%emt 0:00:02]} 6. Nf3 {[%emt 0:00:01]} g6 {[%emt 0:00:01]} 7. Be2 {[%emt 0:00:04]} Bg7 {[%emt 0:00:01]} 8. Be3 {[%emt 0:00:02]} O-O {[%emt 0:00:02]} 9. Nc3 {[%emt 0:00:01]} Nc6 {[%emt 0:00:01]} 10. O-O {[%emt 0:00:02]} Bg4 {[%emt 0:00:01]} 11. b3 {[%emt 0:00:13]} Bxf3 {[%emt 0:00:03]} 12. Bxf3 {[%emt 0:00:01]} e5 {[%emt 0:00:01]} 13. d5 {[%emt 0:00:16]} ({White should try} 13. dxe5 $16 dxe5 14. c5) 13... Ne7 {[%emt 0:00:10][%cal Bc6e7,Be7f5,Bf5d4][%mdl 32] B04: Alekhine's Defence: 4 Nf3.} 14. Rc1 {[%emt 0:00:13]} Nf5 {[%emt 0:00:05]} 15. Bd2 {[%emt 0:00:14]} Nd4 {[%emt 0:00:03] The position is equal.} 16. Be2 {[%emt 0:00:15]} Nd7 {[%emt 0:00:09][%cal Bb6d7,Bd7e5,Be5g4,Bg4e3][%mdl 32] [#]} 17. f4 $146 {[%emt 0:00:02]} ({Predecessor:} 17. Be3 a6 18. Ne4 Qe7 19. Bxd4 exd4 20. Bd3 f5 21. Nd2 Rae8 22. Nf3 Nc5 23. Re1 {1-0 (46) Ghazarian,K (2427)-Boraso,A (2286) Chess.com INT 2022}) 17... Re8 {[%emt 0:00:28]} 18. Bd3 {[%emt 0:00:16]} f5 {[%emt 0:00:09]} (18... Nc5 $5 {[%cal Rc5d3]} 19. Bb1 e4 $11) 19. fxe5 {[%emt 0:00:12] Strongly threatening e6.} Nxe5 {[%emt 0:00:07]} 20. Bb1 {[%emt 0:00:02]} (20. Bf4 $11 {keeps the balance.}) 20... Ng4 $1 $17 {[%emt 0:00:02][%cal Og4h2] 0x0.0002da1d050edp-1022s more active pieces. Pair of Knights!} 21. h3 {[%emt 0:00:10]} (21. Bf4 $17) 21... Ne3 $19 {[%emt 0:00:07]} 22. Bxe3 {[%emt 0:00:02]} Rxe3 {[%emt 0:00:01]} 23. Qd2 {[%emt 0:00:33]} Qe7 {[%emt 0:00:13]} 24. Rce1 {[%emt 0:00:11] [#]} f4 {[%emt 0:00:18]} (24... Bh6 $142 $1 {[%cal Oa8e8] Threatens to win with ...Re8!} 25. Qf2 Rf8) 25. Nd1 $2 {[%emt 0:00:12][%mdl 8192]} (25. Bd3 $17 {is tougher.}) 25... Rxe1 $2 {[%emt 0:00:17]} (25... Ne2+ $19 {has better winning chances.} 26. Kh1 Ng3+ 27. Kg1 Nxf1 28. Kxf1 {[#]} Re8 $1 29. Nxe3 fxe3) 26. Rxe1 $17 {[%emt 0:00:03]} Qg5 {[%emt 0:00:01]} 27. Nf2 $2 {[%emt 0:00:15][%mdl 8192]} (27. Kf1 $17) 27... Nf3+ {[%emt 0:00:02] Weighted Error Value: White=1.24/Black=0.55} 0-1

[Event "German-ch Blitz Women 2022"]
[Site "Magdeburg"]
[Date "2022.08.13"]
[Round "4.4"]
[White "Muetsch, Annmarie"]
[Black "Zschischang, Marine"]
[Result "1-0"]
[ECO "C02"]
[WhiteElo "2249"]
[BlackElo "2083"]
[Annotator "TA"]
[PlyCount "90"]
[EventDate "2022.08.10"]
[EventType "tourn"]
[EventCountry "GER"]
[SourceTitle "playchess.com"]
[Source "ChessBase"]
[SourceQuality "1"]
[TimeControl "180+2"]

{[%evp 16,90,0,-4,0,0,0,0,6,-33,0,0,0,-29,-15,-42,-8,-15,-9,-9,-7,-2,-2,-39,-28,-43,-50,-57,-47,-58,-34,-180,-176,-188,-179,-250,256,242,272,287,290,270,281,268,264,273,391,380,557,556,541,238,221,211,209,187,242,235,249,269,335,348,550,316,318,318,288,301,359,350,329,316,458,306,337,54,60]} 1. e4 {[%emt 0:00:01]} e6 {[%emt 0:00:00]} 2. d4 {[%emt 0:00:02]} d5 {[%emt 0:00:01]} 3. e5 c5 {[%emt 0:00:02]} 4. c3 {[%emt 0:00:03]} Nc6 {[%emt 0:00:02]} 5. Nf3 {[%emt 0:00:05]} Qb6 {[%emt 0:00:01]} 6. a3 {[%emt 0:00:02]} c4 {[%emt 0:00:02]} 7. Nbd2 {[%emt 0:00:04]} Na5 {[%emt 0:00:00]} 8. Rb1 $1 {[%emt 0:00:04][%mdl 4] is now more promising than 8.Be2.} Bd7 {[%emt 0:00:01]} 9. Be2 {[%emt 0:00:21]} Ne7 {[%emt 0:00:02] C02: French: Advance Variation.} 10. h4 {[%emt 0:00:05]} Qc7 {[%emt 0:00:07]} 11. h5 {[%emt 0:00:04]} h6 {[%emt 0:00:01] [#] The position is equal.} 12. g4 $146 {[%emt 0:00:06]} ({Predecessor:} 12. Nf1 Nc8 13. Bf4 Nb6 14. Qd2 Ba4 15. Bd1 Qc6 16. Ne3 Qb5 17. O-O Bb3 18. Qe2 {1-0 (42) Sjugirov,S (2696)-Maghsoodloo,P (2716) Chess.com INT 2022}) 12... Nc8 {[%emt 0:00:03]} 13. Nf1 $1 {[%emt 0:00:10]} Nb6 {[%emt 0:00:01]} 14. Ng3 {[%emt 0:00:02]} O-O-O {[%emt 0:00:07][%cal Be8c8,Bc8b8,Bb8a8][%mdl 32]} 15. Kf1 {[%emt 0:00:04]} Kb8 {[%emt 0:00:07]} 16. Bf4 {[%emt 0:00:09]} Ka8 {[%emt 0:00:04]} 17. Qd2 {[%emt 0:00:04]} Be7 {[%emt 0:00:05]} 18. Kg2 {[%emt 0:00:03]} Rdg8 {[%emt 0:00:02]} 19. g5 {[%emt 0:00:05]} hxg5 {[%emt 0:00:13]} 20. Nxg5 {[%emt 0:00:04]} Be8 {[%emt 0:00:11]} 21. Qe3 {[%emt 0:00:05]} Qd8 {[%emt 0:00:16]} 22. Rbg1 {[%emt 0:00:10]} Nc6 {[%emt 0:00:23]} 23. Kf1 {[%emt 0:00:06]} (23. Bd1 $15) 23... Na4 $19 {[%emt 0:00:11]} 24. Qc1 {[%emt 0:00:29]} Qb6 {[%emt 0:00:02]} 25. Bd1 {[%emt 0:00:31]} (25. Qc2 $142) 25... Qxb2 $4 {[%emt 0:00:20][%mdl 8192] [#]} 26. Bxa4 $18 {[%emt 0:00:09]} Bxa3 {[%emt 0:00:08]} 27. Qxb2 {[%emt 0:00:05]} Bxb2 {[%emt 0:00:02]} 28. Bd2 {[%emt 0:00:04]} Nd8 {[%emt 0:00:09]} 29. Bxe8 {[%emt 0:00:03]} Rxe8 {[%emt 0:00:02]} 30. Ke2 {[%emt 0:00:03]} f6 {[%emt 0:00:05]} (30... b6 {was worth a try.} 31. f4 f5) 31. Nf3 {[%emt 0:00:03]} Ba3 {[%emt 0:00:05]} (31... f5 $142 32. Nf1 Rh7) 32. h6 {[%emt 0:00:02]} gxh6 {[%emt 0:00:09]} 33. Rxh6 {[%emt 0:00:04]} (33. exf6 $142 Bd6 34. Ne5) 33... Rxh6 {[%emt 0:00:10]} 34. Bxh6 {[%emt 0:00:01]} fxe5 {[%emt 0:00:03]} 35. Nxe5 {[%emt 0:00:03]} Bd6 {[%emt 0:00:05]} (35... b5 {might work better.} 36. Rb1 a6) 36. Bf4 {[%emt 0:00:06]} Bxe5 {[%emt 0:00:16]} 37. Bxe5 {[%emt 0:00:02]} b5 {[%emt 0:00:05]} 38. Nh5 {[%emt 0:00:02]} Kb7 {[%emt 0:00:06]} (38... Nf7 $142 39. Nf6 Rh8) 39. Nf6 {[%emt 0:00:05]} Re7 {[%emt 0:00:19]} 40. Bd6 {[%emt 0:00:16]} Rf7 {[%emt 0:00:02]} 41. Ng4 {[%emt 0:00:02]} Nc6 {[%emt 0:00:03]} 42. Ne5 {[%emt 0:00:02]} Nxe5 {[%emt 0:00:10]} 43. dxe5 {[%emt 0:00:02] And now Rg6 would win.} ({Not} 43. Bxe5 a5 $16) 43... Rh7 (43... Kc6 $142 44. Rg6 Kd7) 44. Ke3 {[#] Hoping for Rg6.} a5 45. Kd4 $2 ({White should play} 45. Rg6 $18) 45... Kc6 {Weighted Error Value: White=0.47/Black=0.47} 1-0

[Event "German-ch Blitz Women 2022"]
[Site "Magdeburg"]
[Date "2022.08.13"]
[Round "4.5"]
[White "Daemering, Katrin"]
[Black "Schuster, Rebekka"]
[Result "1-0"]
[ECO "C00"]
[WhiteElo "1965"]
[BlackElo "1815"]
[Annotator "TA"]
[PlyCount "48"]
[EventDate "2022.08.10"]
[EventType "tourn"]
[EventCountry "GER"]
[SourceTitle "playchess.com"]
[Source "ChessBase"]
[SourceQuality "1"]
[TimeControl "180+2"]

{[%evp 16,48,-15,-29,0,0,4,-31,-28,-68,-15,-30,0,-89,98,112,169,183,172,160,185,172,188,170,200,151,138,141,220,212,360,197,192,187,216]} 1. e4 {[%emt 0:00:01]} e6 {[%emt 0:00:00]} 2. d3 {[%emt 0:00:01]} d5 {[%emt 0:00:01]} 3. Qe2 {[%emt 0:00:01]} Nf6 {[%emt 0:00:13]} 4. e5 {[%emt 0:00:01]} Nfd7 {[%emt 0:00:00]} 5. Nf3 {[%emt 0:00:02]} c5 {[%emt 0:00:02]} 6. g3 {[%emt 0:00:01]} Nc6 {[%emt 0:00:01]} 7. Bg2 {[%emt 0:00:02]} Be7 {[%emt 0:00:01]} 8. O-O {[%emt 0:00:03]} O-O {[%emt 0:00:01]} 9. h4 {[%emt 0:00:02]} f6 {[%emt 0:00:16] C00: French: Unusual White 2nd moves.} 10. exf6 {[%emt 0:00:09]} Nxf6 {[%emt 0:00:02] [#]} 11. Re1 $146 {[%emt 0:00:08]} ({Predecessor:} 11. Bf4 Ng4 12. Bg5 Bf6 13. c3 h6 14. Bxf6 Qxf6 15. Nbd2 Bd7 16. Rae1 Rae8 17. Nh2 Nxh2 18. Kxh2 {1-0 (39) Svetushkin,D (2587)-Dzagnidze,N (2458) Kavala 2008}) 11... Bd6 {[%emt 0:00:25] Black is slightly better.} 12. Nc3 {[%emt 0:00:12][%cal Bb1c3,Bc3d5,Bd5e3][%mdl 32]} e5 {[%emt 0:00:49]} (12... h6 $15) 13. Bg5 $11 {[%emt 0:00:13]} Bb8 {[%emt 0:00:23]} 14. Nh2 {[%emt 0:00:23] Prevents Bg4.} (14. Bxf6 $11 gxf6 15. Nd2) 14... Qd6 $2 {[%emt 0:00:42]} (14... Be6 $1 $17 {keeps the pressure on.}) 15. Bxf6 $16 {[%emt 0:00:10] White is more active.} Rxf6 {[%emt 0:00:04]} (15... gxf6 $16 16. Bxd5+ Kh8) 16. Nxd5 {[%emt 0:00:05]} Rf8 {[%emt 0:00:17]} 17. c3 {[%emt 0:00:04]} Be6 {[%emt 0:00:16] [#]} 18. Ne3 {[%emt 0:00:04]} ({Much less strong is} 18. Qe4 $6 Qd7 $16) 18... Qe7 {[%emt 0:00:01]} 19. Rad1 {[%emt 0:00:22]} Qf7 {[%emt 0:00:02]} 20. Rf1 {[%emt 0:00:10]} Bc7 {[%emt 0:00:01]} 21. Nf3 {[%emt 0:00:08] Strongly threatening Ng5.} Rad8 {[%emt 0:00:02]} (21... h6 $16 22. Nd2 Qd7) 22. Ng5 $18 {[%emt 0:00:02] Pair of Knights!} Qe7 {[%emt 0:00:01] [#]} (22... Qe8 $142 23. Nd5 Bb6 24. Nxe6 (24. Qe4 Bf5 $18) 24... Qxe6) 23. Nxe6 {[%emt 0:00:02]} ({Not} 23. Qh5 h6 24. Nxe6 Qxe6 $16) (23. Nd5 $142 $1 {[%mdl 512]} Bxd5 (23... Rxd5 24. Qe4) 24. Bxd5+ Kh8 25. Qe4) 23... Qxe6 {[%emt 0:00:01]} 24. Nc4 {[%emt 0:00:05]} Rde8 {Weighted Error Value: White=0.31/Black=0.54} 1-0

[Event "German-ch Blitz Women 2022"]
[Site "Magdeburg"]
[Date "2022.08.13"]
[Round "4.6"]
[White "Khrapko, Marharyta"]
[Black "Fock, Sana"]
[Result "1-0"]
[ECO "B50"]
[WhiteElo "2128"]
[BlackElo "1807"]
[Annotator "RC"]
[PlyCount "148"]
[EventDate "2022.08.10"]
[EventType "tourn"]
[EventCountry "GER"]
[SourceTitle "playchess.com"]
[Source "ChessBase"]
[SourceQuality "1"]
[TimeControl "180+2"]

1. e4 c5 2. Nf3 d6 3. c3 Nc6 4. Bd3 g6 5. h3 Bg7 6. Bc2 Nf6 7. O-O e5 8. a3 O-O 9. Re1 h6 10. d3 Be6 11. Be3 Kh7 12. Qd2 Ng8 13. d4 cxd4 14. cxd4 exd4 15. Bf4 Be5 16. Nxe5 dxe5 17. Bg3 Rc8 18. f4 exf4 19. Bxf4 Qh4 20. Bd3 a6 21. Rf1 f5 22. Qe2 fxe4 23. Qxe4 Bf5 24. Qe2 Bxd3 25. Qxd3 Rxf4 26. Nd2 Rcf8 27. Rfe1 Qf2+ 28. Kh1 Qh4 29. Nb3 Rf2 30. Nc5 Rxg2 31. Kxg2 Rf2+ 32. Kg1 Rf5 33. Re4 Qg5+ 34. Rg4 Qe3+ 35. Qxe3 dxe3 36. Nxb7 Nge7 37. Re4 Re5 38. Nd6 Rxe4 39. Nxe4 Nd4 40. Nc3 Nc2 41. Rc1 e2 42. Nxe2 Ne3 43. Rc7 N3f5 44. Nd4 Kg8 45. Nxf5 Nxf5 46. Rc6 Kf7 47. Rxa6 Ne3 48. b4 Nd5 49. b5 Ke7 50. Rxg6 Nf4 51. Rxh6 Kd7 52. h4 Ne2+ 53. Kf2 Nd4 54. b6 Kc8 55. Rh7 Ne6 56. b7+ Kb8 57. h5 Nd4 58. h6 Nf5 59. Kf3 Nh4+ 60. Kg4 Ng6 61. Kf5 Nh4+ 62. Ke6 Ng6 63. Kf7 Ne5+ 64. Kg8 Ng4 65. Kg7 Ne5 66. Rh8+ Kxb7 67. h7 Nf3 68. Rg8 Ng5 69. h8=Q Ne6+ 70. Kf6 Nc5 71. Qg7+ Kb6 72. Qg1 Kb5 73. Rb8+ Kc4 74. Rc8 Kd5 1-0